fUSD/lending_fUSD_20250905
["ID","MTS","AMOUNT","RATE_DAILY","PERIOD"]
[383757315,1757109148214,-434.21,0.00036986,10]
[383757316,1757109148223,-400.0,0.00036986,10]
[383757317,1757109148233,-400.0,0.00036986,10]
[383757318,1757109148243,-400.0,0.00036986,10]
[383757319,1757109148252,-400.0,0.00036986,10]
[383757320,1757109148262,-400.0,0.00036986,10]
[383757321,1757109148271,-400.0,0.00036986,10]
[383757322,1757109148280,-400.0,0.00036986,10]
[383757323,1757109148289,-400.0,0.00036986,10]
[383757324,1757109148299,-400.0,0.00036986,10]
[383757325,1757109148308,-400.0,0.00036986,10]
[383757326,1757109148317,-400.0,0.00036986,10]
[383757327,1757109148327,-400.0,0.00036986,10]
[383757328,1757109148336,-400.0,0.00036986,10]
[383757329,1757109148346,-400.0,0.00036986,10]
[383757330,1757109148355,-400.0,0.00036986,10]
[383757331,1757109148365,-400.0,0.00036986,10]
[383757332,1757109148374,-400.0,0.00036986,10]
[383757333,1757109148383,-400.0,0.00036986,10]
[383757334,1757109148393,-400.0,0.00036986,10]
[383757335,1757109148403,-697.19,0.00036986,10]
[383757336,1757109148413,-212.7,0.00036986,10]
[383757337,1757109148423,-400.0,0.00036986,10]
[383757338,1757109148433,-400.0,0.00036986,10]
[383757339,1757109148443,-356.54389558,0.00036986,10]
[383757340,1757109148452,-400.0,0.00036986,10]
[383757341,1757109148462,-400.0,0.00036986,10]
[383757342,1757109148472,-588.33,0.00036986,10]
[383757343,1757109148482,-400.0,0.00036986,10]
[383757344,1757109148491,-400.0,0.00036986,10]
[383757345,1757109148500,-467.87,0.00036986,10]
[383757346,1757109148510,-400.0,0.00036986,10]
[383757347,1757109148520,-400.0,0.00036986,10]
[383757348,1757109148530,-248.16918908,0.00036986,10]
[383757349,1757109148539,-400.0,0.00036986,10]
[383757350,1757109148548,-400.0,0.00036986,10]
[383757351,1757109148557,-400.0,0.00036986,10]
[383757352,1757109148568,-400.0,0.00036986,10]
[383757353,1757109148577,-400.0,0.00036986,10]
[383757354,1757109148588,-400.0,0.00036986,10]
[383757355,1757109148597,-400.0,0.00036986,10]
[383757356,1757109148608,-400.0,0.00036986,10]
[383757357,1757109148619,-400.0,0.00036986,10]
[383757358,1757109148628,-400.0,0.00036986,10]
[383757359,1757109148638,-400.0,0.00036986,10]
[383757360,1757109148649,-400.0,0.00036986,10]
[383757361,1757109148661,-434.97,0.00036986,10]
[383757362,1757109148671,-400.0,0.00036986,10]
[383757363,1757109148681,-400.0,0.00036986,10]
[383757364,1757109148690,-400.0,0.00036986,10]
[383757365,1757109148700,-400.0,0.00036986,10]
[383757366,1757109148710,-547.22,0.00036986,10]
[383757367,1757109148720,-9387.3,0.00036986,10]
[383757368,1757109148730,-400.0,0.00036986,10]
[383757369,1757109148740,-400.0,0.00036986,10]
[383757370,1757109148750,-438.16,0.00036986,10]
[383757371,1757109148759,-400.44,0.00036986,10]
[383757372,1757109148769,-400.0,0.00036986,10]
[383757373,1757109148779,-467.62,0.00036986,10]
[383757374,1757109148789,-506.66,0.00036986,10]
[383757375,1757109148799,-400.0,0.00036986,10]
[383757376,1757109148808,-400.0,0.00036986,10]
[383757377,1757109148817,-400.0,0.00036986,10]
[383757378,1757109148827,-400.0,0.00036986,10]
[383757379,1757109148836,-400.0,0.00036986,10]
[383757380,1757109148845,-422.62,0.00036986,10]
[383757381,1757109148855,-400.0,0.00036986,10]
[383757382,1757109148866,-400.0,0.00036986,10]
[383757383,1757109148876,-406.5,0.00036986,10]
[383757384,1757109148886,-400.0,0.00036986,10]
[383757385,1757109148896,-773.54,0.00036986,10]
[383757386,1757109148906,-765.31,0.00036986,10]
[383757387,1757109148915,-400.0,0.00036986,10]
[383757388,1757109148925,-401.2,0.00036986,10]
[383757389,1757109148935,-400.0,0.00036986,10]
[383757390,1757109148945,-400.0,0.00036986,10]
[383757391,1757109148954,-400.0,0.00036986,10]
[383757392,1757109148966,-417.09,0.00036986,10]
[383757393,1757109148975,-441.78,0.00036986,10]
[383757394,1757109148985,-400.0,0.00036986,10]
[383757395,1757109148994,-400.0,0.00036986,10]
[383757396,1757109149003,-441.15,0.00036986,10]
[383757397,1757109149015,-400.0,0.00036986,10]
[383757398,1757109149024,-400.0,0.00036986,10]
[383757399,1757109149035,-400.0,0.00036986,10]
[383757400,1757109149044,-400.0,0.00036986,10]
[383757401,1757109149054,-553.83,0.00036986,10]
[383757402,1757109149064,-546.26,0.00036986,10]
[383757403,1757109149074,-400.0,0.00036986,10]
[383757404,1757109149083,-400.0,0.00036986,10]
[383757405,1757109149093,-400.0,0.00036986,10]
[383757406,1757109149103,-400.0,0.00036986,10]
[383757407,1757109149113,-785.59,0.00036986,10]
[383757408,1757109149123,-437.91,0.00036986,10]
[383757409,1757109149132,-447.37,0.00036986,10]
[383757410,1757109149142,-400.0,0.00036986,10]
[383757411,1757109149152,-400.0,0.00036986,10]
[383757412,1757109149161,-632.37,0.00036986,10]
[383757413,1757109149171,-400.0,0.00036986,10]
[383757414,1757109149181,-400.0,0.00036986,10]
[383757415,1757109149191,-414.4,0.00036986,10]
[383757416,1757109149200,-400.0,0.00036986,10]
[383757417,1757109149210,-569.2,0.00036986,10]
[383757418,1757109149219,-981.06,0.00036986,10]
[383757419,1757109149229,-400.0,0.00036986,10]
[383757420,1757109149239,-400.0,0.00036986,10]
[383757421,1757109149248,-400.0,0.00036986,10]
[383757422,1757109149258,-400.0,0.00036986,10]
[383757423,1757109149267,-400.0,0.00036986,10]
[383757424,1757109149277,-400.0,0.00036986,10]
[383757425,1757109149286,-400.0,0.00036986,10]
[383757426,1757109149296,-400.0,0.00036986,10]
[383757427,1757109149305,-420.85,0.00036986,10]
[383757428,1757109149315,-542.91,0.00036986,10]
[383757429,1757109149324,-400.0,0.00036986,10]
[383757430,1757109149334,-1444.34,0.00036986,10]
[383757431,1757109149343,-400.0,0.00036986,10]
[383757432,1757109149353,-414.08,0.00036986,10]
[383757433,1757109149363,-400.0,0.00036986,10]
[383757434,1757109149372,-400.0,0.00036986,10]
[383757435,1757109149382,-400.0,0.00036986,10]
[383757436,1757109149391,-2516.87,0.00036986,10]
[383757437,1757109149400,-400.0,0.00036986,10]
[383757438,1757109149410,-441.96,0.00036986,10]
[383757439,1757109149420,-498.12,0.00036986,10]
[383757440,1757109149430,-400.0,0.00036986,10]
[383757441,1757109149440,-487.97,0.00036986,10]
[383757442,1757109149449,-400.0,0.00036986,10]
[383757443,1757109149459,-586.94,0.00036986,10]
[383757444,1757109149468,-2345.08,0.00036986,10]
[383757445,1757109149478,-626.89,0.00036986,10]
[383757446,1757109149487,-447.68,0.00036986,10]
[383757447,1757109149497,-400.0,0.00036986,10]
[383757448,1757109149507,-400.0,0.00036986,10]
[383757449,1757109149516,-400.0,0.00036986,10]
[383757450,1757109149526,-400.0,0.00036986,10]
[383757451,1757109149535,-400.0,0.00036986,10]
[383757452,1757109149545,-400.0,0.00036986,10]
[383757453,1757109149555,-400.0,0.00036986,10]
[383757454,1757109149565,-448.78,0.00036986,10]
[383757455,1757109149575,-400.0,0.00036986,10]
[383757456,1757109149584,-400.0,0.00036986,10]
[383757457,1757109149595,-400.0,0.00036986,10]
[383757458,1757109149604,-400.0,0.00036986,10]
[383757459,1757109149614,-475.22,0.00036986,10]
[383757460,1757109149625,-562.67,0.00036986,10]
[383757461,1757109149635,-546.92,0.00036986,10]
[383757462,1757109149644,-576.12,0.00036986,10]
[383757463,1757109149654,-400.0,0.00036986,10]
[383757464,1757109149664,-459.73,0.00036986,10]
[383757465,1757109149674,-400.0,0.00036986,10]
[383757466,1757109149684,-400.0,0.00036986,10]
[383757467,1757109149694,-400.0,0.00036986,10]
[383757468,1757109149704,-400.0,0.00036986,10]
[383757469,1757109149714,-400.0,0.00036986,10]
[383757470,1757109149725,-400.0,0.00036986,10]
[383757471,1757109149735,-400.0,0.00036986,2]
[383757472,1757109149746,-543.53,0.00036986,10]
[383757473,1757109149755,-400.0,0.00036986,10]
[383757474,1757109149766,-495.5,0.00036986,10]
[383757475,1757109149776,-400.0,0.00036986,10]
[383757476,1757109149786,-551.73,0.00036986,10]
[383757477,1757109149795,-400.0,0.00036986,10]
[383757478,1757109149805,-584.47,0.00036986,10]
[383757479,1757109149816,-400.0,0.00036986,10]
[383757480,1757109149826,-400.0,0.00036986,10]
[383757481,1757109149837,-445.12,0.00036986,10]
[383757482,1757109149848,-400.0,0.00036986,10]
[383757483,1757109149859,-400.0,0.00036986,10]
[383757484,1757109149870,-400.0,0.00036986,10]
[383757485,1757109149881,-618.31,0.00036986,10]
[383757486,1757109149891,-400.0,0.00036986,10]
[383757487,1757109149902,-582.55,0.00036986,10]
[383757488,1757109149912,-502.39,0.00036986,10]
[383757489,1757109149922,-2141.03,0.00036986,10]
[383757490,1757109149932,-400.0,0.00036986,10]
[383757491,1757109149942,-400.0,0.00036986,10]
[383757492,1757109149952,-400.0,0.00036986,10]
[383757493,1757109149963,-400.0,0.00036986,10]
[383757494,1757109149974,-492.2,0.00036986,10]
[383757495,1757109149985,-884.72,0.00036986,10]
[383757496,1757109149995,-400.0,0.00036986,10]
[383757497,1757109150005,-494.68,0.00036986,10]
[383757498,1757109150015,-400.0,0.00036986,10]
[383757499,1757109150024,-401.09064402,0.00036986,10]
[383757500,1757109150034,-590.75,0.00036986,10]
[383757501,1757109150044,-434.34,0.00036986,10]
[383757502,1757109150054,-400.0,0.00036986,10]
[383757503,1757109150064,-400.0,0.00036986,10]
[383757504,1757109150074,-400.0,0.00036986,10]
[383757505,1757109150084,-400.0,0.00036986,10]
[383757506,1757109150094,-423.04,0.00036986,10]
[383757507,1757109150104,-400.0,0.00036986,10]
[383757508,1757109150114,-400.0,0.00036986,10]
[383757509,1757109150124,-474.82,0.00036986,10]
[383757510,1757109150134,-400.0,0.00036986,10]
[383757511,1757109150143,-400.0,0.00036986,10]
[383757512,1757109150153,-400.0,0.00036986,10]
[383757513,1757109150163,-400.0,0.00036986,10]
[383757514,1757109150173,-400.0,0.00036986,10]
[383757515,1757109150184,-400.0,0.00036986,10]
[383757516,1757109150194,-400.0,0.00036986,10]
[383757517,1757109150203,-400.0,0.00036986,10]
[383757518,1757109150213,-400.0,0.00036986,10]
[383757519,1757109150223,-400.0,0.00036986,10]
[383757520,1757109150233,-400.0,0.00036986,10]
[383757521,1757109150243,-422.6,0.00036986,10]
[383757522,1757109150253,-400.0,0.00036986,10]
[383757523,1757109150263,-1028.14,0.00036986,10]
[383757524,1757109150273,-404.16,0.00036986,10]
[383757525,1757109150282,-400.0,0.00036986,10]
[383757526,1757109150292,-2757.36,0.00036986,10]
[383757527,1757109150302,-400.0,0.00036986,10]
[383757528,1757109150312,-701.4,0.00036986,10]
[383757529,1757109150322,-696.57,0.00036986,10]
[383757530,1757109150333,-400.0,0.00036986,10]
[383757531,1757109150344,-400.0,0.00036986,10]
[383757532,1757109150354,-766.81,0.00036986,10]
[383757533,1757109150364,-400.0,0.00036986,10]
[383757534,1757109150375,-400.0,0.00036986,10]
[383757535,1757109150385,-438.53,0.00036986,10]
[383757536,1757109150395,-400.0,0.00036986,10]
[383757537,1757109150405,-400.0,0.00036986,10]
[383757538,1757109150415,-400.0,0.00036986,10]
[383757539,1757109150426,-400.0,0.00036986,10]
[383757540,1757109150437,-400.0,0.00036986,10]
[383757541,1757109150447,-480.98,0.00036986,10]
[383757542,1757109150457,-400.0,0.00036986,10]
[383757543,1757109150578,-425.95,0.00036986,10]
[383757544,1757109150588,-400.0,0.00036986,10]
[383757545,1757109150598,-400.0,0.00036986,10]
[383757546,1757109150609,-443.56,0.00036986,10]
[383757547,1757109150619,-400.0,0.00036986,10]
[383757548,1757109150629,-501.99,0.00036986,10]
[383757549,1757109150639,-400.0,0.00036986,10]
[383757550,1757109150649,-400.0,0.00036986,10]
[383757551,1757109150658,-400.0,0.00036986,10]
[383757552,1757109150668,-400.0,0.00036986,10]
[383757553,1757109150679,-400.0,0.00036986,10]
[383757554,1757109150689,-441.78,0.00036986,10]
[383757555,1757109150698,-545.23,0.00036986,10]
[383757556,1757109150708,-545.84,0.00036986,10]
[383757557,1757109150717,-439.9,0.00036986,10]
[383757558,1757109150728,-400.0,0.00036986,10]
[383757559,1757109150737,-400.0,0.00036986,10]
[383757560,1757109150747,-405.11,0.00036986,10]
[383757561,1757109150756,-400.0,0.00036986,10]
[383757562,1757109150765,-400.0,0.00036986,10]
[383757563,1757109150776,-400.0,0.00036986,10]
[383757564,1757109150786,-400.0,0.00036986,10]
[383757565,1757109150796,-413.96,0.00036986,10]
[383757566,1757109150806,-470.74,0.00036986,10]
[383757567,1757109150816,-1154.65,0.00036986,10]
[383757568,1757109150826,-400.0,0.00036986,10]
[383757569,1757109150836,-400.0,0.00036986,10]
[383757570,1757109150846,-400.0,0.00036986,10]
[383757571,1757109150856,-3534.15,0.00036986,10]
[383757572,1757109150866,-400.0,0.00036986,10]
[383757573,1757109150876,-400.0,0.00036986,10]
[383757574,1757109150886,-466.43,0.00036986,10]
[383757575,1757109150897,-486.3,0.00036986,10]
[383757576,1757109150907,-400.0,0.00036986,10]
[383757577,1757109150917,-552.13,0.00036986,10]
[383757578,1757109150927,-529.91,0.00036986,10]
[383757579,1757109150937,-524.16,0.00036986,10]
[383757580,1757109150946,-400.0,0.00036986,10]
[383757581,1757109150956,-400.0,0.00036986,10]
[383757582,1757109150969,-400.0,0.00036986,10]
[383757583,1757109150979,-400.0,0.00036986,10]
[383757584,1757109150988,-836.63,0.00036986,10]
[383757585,1757109150998,-400.0,0.00036986,10]
[383757586,1757109151009,-400.0,0.00036986,10]
[383757587,1757109151019,-647.19,0.00036986,10]
[383757588,1757109151028,-400.0,0.00036986,10]
[383757589,1757109151038,-400.0,0.00036986,10]
[383757590,1757109151047,-531.26,0.00036986,10]
[383757591,1757109151057,-400.0,0.00036986,10]
[383757592,1757109151067,-508.58,0.00036986,10]
[383757593,1757109151077,-690.4,0.00036986,10]
[383757594,1757109151086,-400.0,0.00036986,10]
[383757595,1757109151096,-400.0,0.00036986,10]
[383757596,1757109151106,-424.68,0.00036986,10]
[383757597,1757109151116,-400.0,0.00036986,10]
[383757598,1757109151125,-496.78,0.00036986,10]
[383757599,1757109151135,-1608.94,0.00036986,10]
[383757600,1757109151144,-400.0,0.00036986,10]
[383757601,1757109151154,-400.0,0.00036986,10]
[383757602,1757109151163,-414.05,0.00036986,10]
[383757603,1757109151172,-446.13,0.00036986,10]
[383757604,1757109151183,-400.0,0.00036986,10]
[383757605,1757109151192,-400.0,0.00036986,10]
[383757606,1757109151202,-983.85,0.00036986,10]
[383757607,1757109151212,-2782.91,0.00036986,10]
[383757608,1757109151221,-522.3,0.00036986,10]
[383757609,1757109151231,-400.0,0.00036986,10]
[383757610,1757109151241,-650.54,0.00036986,10]
[383757611,1757109151251,-436.1,0.00036986,10]
[383757612,1757109151261,-1361.26,0.00036986,10]
[383757613,1757109151271,-400.0,0.00036986,10]
[383757614,1757109151280,-400.0,0.00036986,10]
[383757615,1757109151290,-400.0,0.00036986,10]
[383757616,1757109151299,-649.0,0.00036986,10]
[383757617,1757109151308,-400.0,0.00036986,10]
[383757618,1757109151317,-400.0,0.00036986,10]
[383757619,1757109151326,-474.21,0.00036986,10]
[383757620,1757109151336,-442.27,0.00036986,10]
[383757621,1757109151345,-400.0,0.00036986,10]
[383757622,1757109151355,-400.0,0.00036986,10]
[383757623,1757109151364,-436.72,0.00036986,10]
[383757624,1757109151374,-603.16,0.00036986,10]
[383757625,1757109151383,-407.14,0.00036986,10]
[383757626,1757109151393,-8442.03,0.00036986,10]
[383757627,1757109151403,-443.36,0.00036986,10]
[383757628,1757109151412,-621.71,0.00036986,10]
[383757629,1757109151422,-400.0,0.00036986,10]
[383757630,1757109151434,-400.0,0.00036986,10]
[383757631,1757109151444,-400.0,0.00036986,10]
[383757632,1757109151454,-406.08,0.00036986,10]
[383757633,1757109151464,-400.0,0.00036986,10]
[383757634,1757109151474,-400.0,0.00036986,10]
[383757635,1757109151483,-400.0,0.00036986,10]
[383757636,1757109151493,-400.0,0.00036986,10]
[383757637,1757109151503,-400.0,0.00036986,10]
[383757638,1757109151513,-1439.09,0.00036986,10]
[383757639,1757109151523,-475.57,0.00036986,10]
[383757640,1757109151533,-400.0,0.00036986,10]
[383757641,1757109151544,-400.0,0.00036986,10]
[383757642,1757109151554,-2688.71,0.00036986,10]
[383757643,1757109151564,-400.0,0.00036986,10]
[383757644,1757109151575,-1300.45,0.00036986,10]
[383757645,1757109151585,-400.0,0.00036986,10]
[383757646,1757109151595,-400.0,0.00036986,10]
[383757647,1757109151605,-530.86,0.00036986,10]
[383757648,1757109151615,-400.0,0.00036986,10]
[383757649,1757109151624,-423.37,0.00036986,10]
[383757650,1757109151634,-400.0,0.00036986,10]
[383757651,1757109151645,-384.33001,0.00036986,10]
[383757652,1757109151655,-425.64,0.00036986,10]
[383757653,1757109151665,-442.37,0.00036986,10]
[383757654,1757109151675,-400.0,0.00036986,10]
[383757655,1757109151685,-400.0,0.00036986,10]
[383757656,1757109151696,-400.0,0.00036986,10]
[383757657,1757109151706,-400.0,0.00036986,10]
[383757658,1757109151715,-417.31855699,0.00036986,10]
[383757659,1757109151727,-400.0,0.00036986,10]
[383757660,1757109151738,-4723.5,0.00036986,10]
[383757661,1757109151749,-400.0,0.00036986,10]
[383757662,1757109151758,-446.4,0.00036986,10]
[383757663,1757109151768,-514.62,0.00036986,10]
[383757664,1757109151778,-400.0,0.00036986,10]
[383757665,1757109151788,-783.27,0.00036986,10]
[383757666,1757109151798,-400.0,0.00036986,10]
[383757667,1757109151807,-425.55,0.00036986,10]
[383757668,1757109151817,-483.04,0.00036986,10]
[383757669,1757109151827,-440.05,0.00036986,10]
[383757670,1757109151837,-400.0,0.00036986,10]
[383757671,1757109151846,-400.0,0.00036986,10]
[383757672,1757109151858,-483.3,0.00036986,10]
[383757673,1757109151867,-400.0,0.00036986,10]
[383757674,1757109151877,-400.0,0.00036986,10]
[383757675,1757109151885,-500.0,0.00036986,10]
[383757676,1757109151895,-599.12,0.00036986,10]
[383757677,1757109151905,-400.0,0.00036986,10]
[383757678,1757109151914,-677.0,0.00036986,10]
[383757679,1757109151925,-400.0,0.00036986,10]
[383757680,1757109151936,-1085.17,0.00036986,10]
[383757681,1757109151945,-400.0,0.00036986,10]
[383757682,1757109151954,-400.0,0.00036986,10]
[383757683,1757109151965,-400.0,0.00036986,10]
[383757684,1757109151975,-3844.91,0.00036986,10]
[383757685,1757109151985,-400.0,0.00036986,10]
[383757686,1757109151994,-1689.46,0.00036986,10]
[383757687,1757109152004,-421.08,0.00036986,10]
[383757688,1757109152014,-400.0,0.00036986,10]
[383757689,1757109152023,-877.43,0.00036986,10]
[383757690,1757109152033,-400.0,0.00036986,10]
[383757691,1757109152043,-537.76,0.00036986,10]
[383757692,1757109152053,-400.0,0.00036986,10]
[383757693,1757109152063,-400.0,0.00036986,10]
[383757694,1757109152072,-436.27,0.00036986,10]
[383757695,1757109152082,-479.41,0.00036986,10]
[383757696,1757109152091,-400.0,0.00036986,10]
[383757697,1757109152101,-400.0,0.00036986,10]
[383757698,1757109152110,-400.0,0.00036986,10]
[383757699,1757109152120,-400.0,0.00036986,10]
[383757700,1757109152130,-931.34,0.00036986,10]
[383757701,1757109152139,-400.0,0.00036986,10]
[383757702,1757109152148,-400.0,0.00036986,10]
[383757703,1757109152158,-400.0,0.00036986,10]
[383757704,1757109152169,-434.12,0.00036986,10]
[383757705,1757109152179,-2095.01,0.00036986,10]
[383757706,1757109152189,-400.0,0.00036986,10]
[383757707,1757109152198,-400.0,0.00036986,10]
[383757708,1757109152208,-400.0,0.00036986,10]
[383757709,1757109152219,-1265.08,0.00036986,10]
[383757710,1757109152228,-828.12,0.00036986,10]
[383757711,1757109152238,-490.29,0.00036986,10]
[383757712,1757109152247,-400.0,0.00036986,10]
[383757713,1757109152256,-400.0,0.00036986,10]
[383757714,1757109152266,-400.0,0.00036986,10]
[383757715,1757109152275,-400.0,0.00036986,10]
[383757716,1757109152284,-407.95,0.00036986,10]
[383757717,1757109152294,-400.0,0.00036986,10]
[383757718,1757109152303,-400.0,0.00036986,10]
[383757719,1757109152313,-445.3,0.00036986,10]
[383757720,1757109152322,-1988.71,0.00036986,10]
[383757721,1757109152332,-400.0,0.00036986,10]
[383757722,1757109152343,-400.0,0.00036986,10]
[383757723,1757109152353,-400.0,0.00036986,10]
[383757724,1757109152362,-400.0,0.00036986,10]
[383757725,1757109152372,-428.34,0.00036986,10]
[383757726,1757109152381,-531.57,0.00036986,10]
[383757727,1757109152691,-401.29,0.00036986,10]
[383757728,1757109152711,-400.0,0.00036986,10]
[383757729,1757109152721,-720.58,0.00036986,10]
[383757730,1757109152731,-400.0,0.00036986,10]
[383757731,1757109152741,-400.0,0.00036986,10]
[383757732,1757109152750,-400.0,0.00036986,10]
[383757733,1757109152761,-400.0,0.00036986,10]
[383757734,1757109152770,-400.0,0.00036986,10]
[383757735,1757109152780,-471.02,0.00036986,10]
[383757736,1757109152790,-406.36344825,0.00036986,10]
[383757737,1757109152800,-400.0,0.00036986,10]
[383757738,1757109152810,-2254.56,0.00036986,10]
[383757739,1757109152820,-400.0,0.00036986,10]
[383757740,1757109152830,-786.84,0.00036986,10]
[383757741,1757109152840,-400.0,0.00036986,10]
[383757742,1757109152850,-400.0,0.00036986,10]
[383757743,1757109152860,-400.0,0.00036986,10]
[383757744,1757109152870,-400.0,0.00036986,10]
[383757745,1757109152880,-1906.65,0.00036986,10]
[383757746,1757109152891,-400.0,0.00036986,10]
[383757747,1757109152902,-400.0,0.00036986,10]
[383757748,1757109152912,-3337.86,0.00036986,10]
[383757749,1757109152922,-400.0,0.00036986,10]
[383757750,1757109152931,-400.0,0.00036986,10]
[383757751,1757109152941,-400.0,0.00036986,10]
[383757752,1757109152954,-400.0,0.00036986,10]
[383757753,1757109152965,-404.67,0.00036986,10]
[383757754,1757109152975,-516.46,0.00036986,10]
[383757755,1757109152985,-400.0,0.00036986,10]
[383757756,1757109152995,-911.18,0.00036986,10]
[383757757,1757109153006,-511.96,0.00036986,10]
[383757758,1757109153016,-400.0,0.00036986,10]
[383757759,1757109153026,-488.47,0.00036986,10]
[383757760,1757109153037,-1977.28,0.00036986,10]
[383757761,1757109153047,-400.0,0.00036986,10]
[383757762,1757109153057,-400.0,0.00036986,10]
[383757763,1757109153067,-400.0,0.00036986,10]
[383757764,1757109153077,-400.0,0.00036986,10]
[383757765,1757109153087,-457.95,0.00036986,10]
[383757766,1757109153097,-400.0,0.00036986,10]
[383757767,1757109153107,-400.0,0.00036986,10]
[383757768,1757109153116,-400.0,0.00036986,10]
[383757769,1757109153126,-527.02,0.00036986,10]
[383757770,1757109153136,-400.0,0.00036986,10]
[383757771,1757109153145,-400.0,0.00036986,10]
[383757772,1757109153155,-697.63,0.00036986,10]
[383757773,1757109153165,-400.0,0.00036986,10]
[383757774,1757109153175,-689.76,0.00036986,10]
[383757775,1757109153185,-400.0,0.00036986,10]
[383757776,1757109153195,-400.0,0.00036986,10]
[383757777,1757109153204,-400.0,0.00036986,10]
[383757778,1757109153214,-400.0,0.00036986,10]
[383757779,1757109153224,-400.0,0.00036986,10]
[383757780,1757109153233,-400.0,0.00036986,10]
[383757781,1757109153243,-410.62,0.00036986,10]
[383757782,1757109153253,-6963.13,0.00036986,10]
[383757783,1757109153262,-400.0,0.00036986,10]
[383757784,1757109153272,-433.65,0.00036986,10]
[383757785,1757109153282,-419.06,0.00036986,10]
[383757786,1757109153291,-400.0,0.00036986,10]
[383757787,1757109153301,-400.0,0.00036986,10]
[383757788,1757109153310,-436.45,0.00036986,10]
[383757789,1757109153320,-400.0,0.00036986,10]
[383757790,1757109153329,-1232.95,0.00036986,10]
[383757791,1757109153339,-400.0,0.00036986,10]
[383757792,1757109153350,-400.0,0.00036986,10]
[383757793,1757109153360,-618.53,0.00036986,10]
[383757794,1757109153370,-400.0,0.00036986,10]
[383757795,1757109153381,-521.29,0.00036986,10]
[383757796,1757109153392,-434.12,0.00036986,10]
[383757797,1757109153401,-469.08,0.00036986,10]
[383757798,1757109153412,-409.61,0.00036986,10]
[383757799,1757109153422,-506.72,0.00036986,10]
[383757800,1757109153432,-70939.90602075,0.00036999,10]
[383757801,1757109153441,-160.49911693,0.00037,60]
[383757802,1757109153451,-176.50443948,0.00037,5]
[383757803,1757109153461,-6000.0,0.00037,2]
[383757804,1757109153470,-10091.0,0.00037,3]
[383757805,1757109153480,-13159.05,0.00037,2]
[383757806,1757109153490,-685.32,0.00037,30]
[383757807,1757109153499,-2079.63,0.00037,14]
[383757808,1757109153509,-511.53429108,0.00037,3]
[383757809,1757109153519,-6326.0,0.00037,120]
[383757810,1757109153529,-212.63008182,0.00037,3]
[383757811,1757109153538,-500.0,0.00037064,2]
[383757812,1757109153548,-426.89,0.00037067,2]
[383757813,1757109153558,-999.99,0.00037067,2]
[383757814,1757109153568,-9999.99,0.00037067,2]